[Event "Sabato rapido!"]
[Site "Chess.com"]
[Date "2020.05.16"]
[Round "3"]
[White "sergiodone"]
[Black "fisherpez"]
[Result "0-1"]
[WhiteElo "1466"]
[BlackElo "1540"]
[TimeControl "720+3"]
[EndTime "7:16:09 PDT"]
[Termination "fisherpez ha vinto per tempo"]

1. e4 {[%clk 0:11:41.4]} 1... e6 {[%clk 0:11:51.1]} 2. d4 {[%clk 0:11:39.6]}
2... b6 {[%clk 0:11:50.4]} 3. Nf3 {[%clk 0:11:33.6]} 3... Bb7 {[%clk 0:11:49.2]}
4. Bd3 {[%clk 0:11:34.7]} 4... Nf6 {[%clk 0:11:51.1]} 5. Qe2 {[%clk 0:11:36.3]}
5... Nc6 {[%clk 0:11:51.3]} 6. c3 {[%clk 0:11:38]} 6... Be7 {[%clk 0:11:45.2]}
7. h3 {[%clk 0:11:39.6]} 7... a5 {[%clk 0:11:40.4]} 8. Na3 {[%clk 0:11:27.7]}
8... Bxa3 {[%clk 0:11:34.6]} 9. bxa3 {[%clk 0:11:28.8]} 9... O-O {[%clk
0:11:33.9]} 10. O-O {[%clk 0:11:28.8]} 10... Ne7 {[%clk 0:11:27.3]} 11. Rb1
{[%clk 0:11:28.2]} 11... Ng6 {[%clk 0:11:20.3]} 12. h4 {[%clk 0:11:13.4]} 12...
Ne8 {[%clk 0:11:14.6]} 13. h5 {[%clk 0:11:12]} 13... Ne7 {[%clk 0:10:53]} 14. h6
{[%clk 0:10:09.9]} 14... g6 {[%clk 0:10:48.4]} 15. Bg5 {[%clk 0:10:00.9]} 15...
f6 {[%clk 0:10:47.1]} 16. Bh4 {[%clk 0:09:49.2]} 16... Rf7 {[%clk 0:10:35.4]}
17. e5 {[%clk 0:09:37.9]} 17... Bxf3 {[%clk 0:10:23.6]} 18. Qxf3 {[%clk
0:09:37.9]} 18... f5 {[%clk 0:10:21.9]} 19. Qf4 {[%clk 0:09:32.3]} 19... Qc8
{[%clk 0:10:16.2]} 20. Bc4 {[%clk 0:09:10.6]} 20... Kf8 {[%clk 0:10:13.7]} 21.
d5 {[%clk 0:09:06.6]} 21... Nxd5 {[%clk 0:10:04.9]} 22. Bxd5 {[%clk 0:09:05]}
22... exd5 {[%clk 0:10:07]} 23. Qd4 {[%clk 0:08:44.3]} 23... c5 {[%clk
0:08:22.8]} 24. Qxd5 {[%clk 0:08:43.1]} 24... Qc6 {[%clk 0:08:19.3]} 25. Qd2
{[%clk 0:08:18.5]} 25... Nc7 {[%clk 0:07:57.4]} 26. c4 {[%clk 0:08:12.3]} 26...
Ne6 {[%clk 0:07:51.7]} 27. Bf6 {[%clk 0:08:06.2]} 27... Kg8 {[%clk 0:07:01]} 28.
Qb2 {[%clk 0:07:37.2]} 28... Rb8 {[%clk 0:06:56.1]} 29. Rfd1 {[%clk 0:07:28.8]}
29... Nd4 {[%clk 0:06:54.1]} 30. f3 {[%clk 0:06:58.9]} 30... Rff8 {[%clk
0:06:37.4]} 31. Re1 {[%clk 0:06:53.8]} 31... Qe6 {[%clk 0:06:31.7]} 32. Rbc1
{[%clk 0:06:32.7]} 32... Rfe8 {[%clk 0:06:06.9]} 33. f4 {[%clk 0:06:20.6]} 33...
Qc6 {[%clk 0:06:02.1]} 34. Qf2 {[%clk 0:06:05.6]} 34... Qa4 {[%clk 0:05:25.6]}
35. e6 {[%clk 0:05:11.7]} 35... Nxe6 {[%clk 0:05:15]} 36. Re3 {[%clk 0:03:46.1]}
36... Rf8 {[%clk 0:05:01.3]} 37. Be5 {[%clk 0:03:23.4]} 37... Rbe8 {[%clk
0:04:53.6]} 38. Rd3 {[%clk 0:03:23.1]} 38... Rf7 {[%clk 0:04:41.7]} 39. Qb2
{[%clk 0:02:46.6]} 39... Qc6 {[%clk 0:04:31.5]} 40. Rd6 {[%clk 0:02:43.7]} 40...
Qe4 {[%clk 0:04:04]} 41. Rcd1 {[%clk 0:02:32.1]} 41... Nxf4 {[%clk 0:03:55.5]}
42. Bxf4 {[%clk 0:02:23.9]} 42... Qxf4 {[%clk 0:03:51.7]} 43. Qxb6 {[%clk
0:00:46.3]} 43... Qe3+ {[%clk 0:03:22.2]} 44. Kh1 {[%clk 0:00:38.3]} 44... Qxh6+
{[%clk 0:03:23.6]} 45. Kg1 {[%clk 0:00:39.6]} 45... Qe3+ {[%clk 0:03:25.2]} 46.
Kh1 {[%clk 0:00:40.8]} 46... Ree7 {[%clk 0:03:09.6]} 47. Qxa5 {[%clk 0:00:29]}
47... Qh6+ {[%clk 0:03:07.9]} 48. Kg1 {[%clk 0:00:27.2]} 48... Kg7 {[%clk
0:03:01.3]} 49. Qc3+ {[%clk 0:00:28.5]} 49... Kg8 {[%clk 0:02:57.4]} 50. Qd3
{[%clk 0:00:17.9]} 50... Qf4 {[%clk 0:02:10.3]} 51. a4 {[%clk 0:00:18.1]} 51...
Qe5 {[%clk 0:01:55.4]} 52. a5 {[%clk 0:00:10.5]} 52... Qb2 {[%clk 0:01:56.1]}
0-1

[Event "Sabato rapido!"]
[Site "Chess.com"]
[Date "2020.05.16"]
[Round "4"]
[White "OMatteoWuO"]
[Black "laremaro"]
[Result "0-1"]
[WhiteElo "1163"]
[BlackElo "1636"]
[TimeControl "720+3"]
[EndTime "7:21:06 PDT"]
[Termination "laremaro ha vinto per abbandono"]

1. d4 {[%clk 0:12:02.9]} 1... Nf6 {[%clk 0:12:00.8]} 2. c4 {[%clk 0:12:02.8]}
2... d6 {[%clk 0:12:00.9]} 3. Nc3 {[%clk 0:11:58.5]} 3... Nbd7 {[%clk
0:12:02.3]} 4. e4 {[%clk 0:11:59.8]} 4... e5 {[%clk 0:12:03.3]} 5. d5 {[%clk
0:11:57.4]} 5... Nc5 {[%clk 0:12:03.7]} 6. Qc2 {[%clk 0:11:59.3]} 6... a5 {[%clk
0:12:04.7]} 7. Nf3 {[%clk 0:11:48.7]} 7... Be7 {[%clk 0:11:57]} 8. h3 {[%clk
0:11:42.9]} 8... O-O {[%clk 0:11:56.3]} 9. Be2 {[%clk 0:11:40.3]} 9... g6 {[%clk
0:11:55]} 10. Bg5 {[%clk 0:11:41.1]} 10... Nh5 {[%clk 0:11:55.6]} 11. Bxe7
{[%clk 0:11:42.2]} 11... Qxe7 {[%clk 0:11:57.5]} 12. g4 {[%clk 0:11:43.9]} 12...
Nf4 {[%clk 0:11:59.2]} 13. a3 {[%clk 0:11:24.1]} 13... a4 {[%clk 0:11:56.4]} 14.
O-O {[%clk 0:10:46.1]} 14... Nxh3+ {[%clk 0:11:52]} 15. Kh2 {[%clk 0:10:43.7]}
15... Nf4 {[%clk 0:11:52.9]} 16. Nb5 {[%clk 0:10:18.7]} 16... Bxg4 {[%clk
0:11:32.2]} 17. Rg1 {[%clk 0:09:59.2]} 17... Bxf3 {[%clk 0:11:26]} 0-1

[Event "Sabato rapido!"]
[Site "Chess.com"]
[Date "2020.05.16"]
[Round "4"]
[White "sergiodone"]
[Black "crippo"]
[Result "0-1"]
[WhiteElo "1459"]
[BlackElo "1514"]
[TimeControl "720+3"]
[EndTime "7:26:35 PDT"]
[Termination "crippo ha vinto per abbandono"]

1. e4 {[%clk 0:12:02.8]} 1... e5 {[%clk 0:12:00.8]} 2. d4 {[%clk 0:12:03.5]}
2... exd4 {[%clk 0:12:02.1]} 3. Qxd4 {[%clk 0:12:05.2]} 3... Nc6 {[%clk
0:12:04]} 4. Qe3 {[%clk 0:12:06.7]} 4... Bb4+ {[%clk 0:12:05.3]} 5. c3 {[%clk
0:12:00.4]} 5... Ba5 {[%clk 0:12:06.3]} 6. f4 {[%clk 0:12:00.5]} 6... Nf6 {[%clk
0:12:06.7]} 7. h3 {[%clk 0:11:58.5]} 7... Bb6 {[%clk 0:12:06.7]} 8. Qf3 {[%clk
0:11:53.8]} 8... O-O {[%clk 0:12:06.1]} 9. Bd3 {[%clk 0:11:49.9]} 9... Re8
{[%clk 0:12:06.7]} 10. Nd2 {[%clk 0:11:42.8]} 10... d5 {[%clk 0:12:07.3]} 11. e5
{[%clk 0:11:43]} 11... Nxe5 {[%clk 0:12:05.4]} 12. fxe5 {[%clk 0:11:43.2]} 12...
Rxe5+ {[%clk 0:12:07]} 13. Kd1 {[%clk 0:11:37.7]} 13... c6 {[%clk 0:12:02.9]}
14. Ne2 {[%clk 0:11:36.4]} 14... Be6 {[%clk 0:12:00.4]} 15. g4 {[%clk
0:11:36.1]} 15... Re3 {[%clk 0:11:58.7]} 16. Qf4 {[%clk 0:11:09.8]} 16... Rxd3
{[%clk 0:11:58.2]} 17. Nd4 {[%clk 0:10:51.8]} 17... Ne4 {[%clk 0:11:55.1]} 18.
Kc2 {[%clk 0:10:42.9]} 18... Bc7 {[%clk 0:11:40.7]} 19. Qf1 {[%clk 0:10:33.6]}
19... Rg3 {[%clk 0:11:42.2]} 20. Nxe6 {[%clk 0:10:26]} 20... fxe6 {[%clk
0:11:43.3]} 21. Nf3 {[%clk 0:09:57.2]} 21... Qf6 {[%clk 0:11:39.6]} 22. Nd4
{[%clk 0:09:23.9]} 22... Qg6 {[%clk 0:11:37]} 23. Kb3 {[%clk 0:09:20.8]} 23...
c5 {[%clk 0:11:36.1]} 24. Nb5 {[%clk 0:08:58.8]} 24... c4+ {[%clk 0:11:33.6]}
25. Ka4 {[%clk 0:08:46.5]} 25... Qe8 {[%clk 0:11:10.2]} 26. Bf4 {[%clk
0:08:38.5]} 26... Bxf4 {[%clk 0:10:59.6]} 27. Qxf4 {[%clk 0:08:38.9]} 27... a6
{[%clk 0:11:01.7]} 28. Kb4 {[%clk 0:06:02.7]} 0-1

[Event "Sabato rapido!"]
[Site "Chess.com"]
[Date "2020.05.16"]
[Round "4"]
[White "fausto2p"]
[Black "pedrak"]
[Result "0-1"]
[WhiteElo "1193"]
[BlackElo "1669"]
[TimeControl "720+3"]
[EndTime "7:34:46 PDT"]
[Termination "pedrak ha vinto per abbandono"]

1. d4 {[%clk 0:12:02.9]} 1... d5 {[%clk 0:12:00.8]} 2. c4 {[%clk 0:12:02.3]}
2... dxc4 {[%clk 0:12:02]} 3. Nf3 {[%clk 0:12:02.2]} 3... Nf6 {[%clk 0:12:01.8]}
4. Nc3 {[%clk 0:12:00.8]} 4... c6 {[%clk 0:11:57.6]} 5. a4 {[%clk 0:12:00.1]}
5... e6 {[%clk 0:11:55.7]} 6. e4 {[%clk 0:11:59.8]} 6... Bb4 {[%clk 0:11:55.5]}
7. Bxc4 {[%clk 0:11:57.1]} 7... Nxe4 {[%clk 0:11:53.6]} 8. Qc2 {[%clk
0:11:36.2]} 8... Nf6 {[%clk 0:11:48.7]} 9. O-O {[%clk 0:11:31.2]} 9... O-O
{[%clk 0:11:49.6]} 10. Bg5 {[%clk 0:11:00.4]} 10... Be7 {[%clk 0:11:49.3]} 11.
Rad1 {[%clk 0:09:51.5]} 11... Nbd7 {[%clk 0:11:43.9]} 12. b4 {[%clk 0:09:11.1]}
12... b6 {[%clk 0:11:34.8]} 13. b5 {[%clk 0:09:00.4]} 13... Bb7 {[%clk
0:11:26.3]} 14. Rfe1 {[%clk 0:08:17.7]} 14... cxb5 {[%clk 0:11:14.3]} 15. Nxb5
{[%clk 0:08:09.6]} 15... Bxf3 {[%clk 0:11:05.9]} 16. gxf3 {[%clk 0:08:08.1]}
16... Rc8 {[%clk 0:10:56.6]} 17. Nxa7 {[%clk 0:07:36.8]} 17... Ra8 {[%clk
0:10:50.9]} 18. Nc6 {[%clk 0:07:24.5]} 18... Qe8 {[%clk 0:10:49.5]} 19. Nxe7+
{[%clk 0:07:18.8]} 19... Qxe7 {[%clk 0:10:50.6]} 20. d5 {[%clk 0:07:00.7]} 20...
Nc5 {[%clk 0:10:41]} 21. d6 {[%clk 0:06:44.6]} 21... Qb7 {[%clk 0:10:19.5]} 22.
Bxf6 {[%clk 0:06:14.6]} 22... gxf6 {[%clk 0:10:20]} 23. Bb5 {[%clk 0:05:42.9]}
23... Qxf3 {[%clk 0:10:15.3]} 24. Re3 {[%clk 0:05:40.7]} 24... Qf4 {[%clk
0:09:52]} 25. Rg3+ {[%clk 0:05:39.8]} 25... Kh8 {[%clk 0:09:53.5]} 26. d7 {[%clk
0:04:47.1]} 26... Ne4 {[%clk 0:09:49.1]} 27. Rh3 {[%clk 0:03:45]} 27... Qg4+
{[%clk 0:09:44.3]} 28. Rg3 {[%clk 0:03:02.7]} 28... Nxg3 {[%clk 0:09:43.7]} 29.
hxg3 {[%clk 0:02:56.9]} 29... Rad8 {[%clk 0:09:35.9]} 30. Kg2 {[%clk 0:02:44.7]}
30... Rg8 {[%clk 0:09:30.2]} 31. Rh1 {[%clk 0:02:44.1]} 31... f5 {[%clk
0:09:13.5]} 32. Rh4 {[%clk 0:02:24.9]} 32... Qg7 {[%clk 0:09:08.8]} 33. Qc6
{[%clk 0:02:06.2]} 33... Rb8 {[%clk 0:08:55.5]} 34. Qd6 {[%clk 0:01:05.4]} 34...
Qf6 {[%clk 0:08:48.5]} 35. Qd3 {[%clk 0:00:52.9]} 35... Qxh4 {[%clk 0:08:44.6]}
0-1

[Event "Sabato rapido!"]
[Site "Chess.com"]
[Date "2020.05.16"]
[Round "4"]
[White "SanSecondoPR"]
[Black "fisherpez"]
[Result "0-1"]
[WhiteElo "1276"]
[BlackElo "1549"]
[TimeControl "720+3"]
[EndTime "7:37:13 PDT"]
[Termination "fisherpez ha vinto per abbandono"]

1. e4 {[%clk 0:12:02.9]} 1... e6 {[%clk 0:12:02.4]} 2. d4 {[%clk 0:12:01.8]}
2... b6 {[%clk 0:12:04.4]} 3. Bc4 {[%clk 0:11:45.6]} 3... Bb7 {[%clk 0:12:04.2]}
4. Nc3 {[%clk 0:11:44.7]} 4... Bb4 {[%clk 0:12:05.3]} 5. Qg4 {[%clk 0:11:14.2]}
5... g6 {[%clk 0:11:56.7]} 6. e5 {[%clk 0:11:02.8]} 6... h5 {[%clk 0:11:34]} 7.
Qg3 {[%clk 0:10:53.7]} 7... Nh6 {[%clk 0:11:31.7]} 8. Bd3 {[%clk 0:10:46.8]}
8... Bxc3+ {[%clk 0:11:30.8]} 9. bxc3 {[%clk 0:10:47]} 9... Nf5 {[%clk
0:11:25.4]} 10. Bxf5 {[%clk 0:10:18.8]} 10... exf5 {[%clk 0:11:23.2]} 11. Nf3
{[%clk 0:10:07.8]} 11... Qe7 {[%clk 0:11:09.6]} 12. a4 {[%clk 0:09:54.7]} 12...
Be4 {[%clk 0:11:10.9]} 13. Ba3 {[%clk 0:09:45.6]} 13... Qe6 {[%clk 0:10:30.8]}
14. Rc1 {[%clk 0:09:33]} 14... Qa2 {[%clk 0:10:12.8]} 15. O-O {[%clk 0:08:44.1]}
15... Qxa3 {[%clk 0:10:06.8]} 16. e6 {[%clk 0:08:34.2]} 16... dxe6 {[%clk
0:10:03.9]} 17. Qe5 {[%clk 0:08:18.9]} 17... O-O {[%clk 0:08:47.7]} 18. Qxc7
{[%clk 0:07:51.1]} 18... Bxf3 {[%clk 0:08:43.4]} 19. gxf3 {[%clk 0:07:48.9]}
19... Qxa4 {[%clk 0:08:42.6]} 20. Kh1 {[%clk 0:07:37.3]} 20... Qc6 {[%clk
0:08:40.8]} 21. Qf4 {[%clk 0:07:31.3]} 21... Nd7 {[%clk 0:08:26.8]} 22. Rg1
{[%clk 0:07:29.9]} 22... Nf6 {[%clk 0:07:58.2]} 23. Rg5 {[%clk 0:07:13.6]} 23...
Rfd8 {[%clk 0:07:16.5]} 24. Rcg1 {[%clk 0:07:07]} 24... Kf8 {[%clk 0:07:12.1]}
25. R5g3 {[%clk 0:06:52.2]} 25... Qxc3 {[%clk 0:07:01.8]} 26. Qh6+ {[%clk
0:06:38.5]} 26... Ke7 {[%clk 0:07:03.2]} 27. Rxg6 {[%clk 0:05:42.5]} 27... fxg6
{[%clk 0:07:02.1]} 28. Qg7+ {[%clk 0:05:38.3]} 28... Kd6 {[%clk 0:07:01.6]} 29.
Qxf6 {[%clk 0:05:29.2]} 29... Qxf3+ {[%clk 0:07:03.3]} 30. Rg2 {[%clk
0:05:23.1]} 30... Qe4 {[%clk 0:06:57.4]} 31. d5 {[%clk 0:05:11.4]} 31... Qxd5
{[%clk 0:06:41.1]} 32. Qb2 {[%clk 0:04:55.2]} 32... Kc6 {[%clk 0:06:36.1]} 33.
Qc3+ {[%clk 0:04:40.9]} 33... Kb7 {[%clk 0:06:36.8]} 34. h3 {[%clk 0:04:25.1]}
34... g5 {[%clk 0:06:31.7]} 35. f3 {[%clk 0:04:10.1]} 35... g4 {[%clk
0:06:29.5]} 36. Rf2 {[%clk 0:03:43.3]} 36... gxh3 {[%clk 0:06:20.9]} 37. Qg7+
{[%clk 0:03:31.9]} 37... Rd7 {[%clk 0:06:20.5]} 38. Qg3 {[%clk 0:03:27.9]} 38...
e5 {[%clk 0:05:45.7]} 39. Qxh3 {[%clk 0:03:21.2]} 39... f4 {[%clk 0:05:46.4]}
40. c4 {[%clk 0:03:11.4]} 40... Qd4 {[%clk 0:05:40.6]} 41. Qh4 {[%clk
0:02:53.2]} 41... Rg8 {[%clk 0:05:40.9]} 42. c5 {[%clk 0:02:46]} 42... Qd1+
{[%clk 0:05:38.1]} 43. Kh2 {[%clk 0:02:40.2]} 43... Qg1+ {[%clk 0:05:28.5]} 44.
Kh3 {[%clk 0:02:41]} 44... Rg3+ {[%clk 0:05:26.8]} 0-1

[Event "Sabato rapido!"]
[Site "Chess.com"]
[Date "2020.05.16"]
[Round "4"]
[White "APipitone"]
[Black "sirmale49"]
[Result "0-1"]
[WhiteElo "1606"]
[BlackElo "1441"]
[TimeControl "720+3"]
[EndTime "7:47:33 PDT"]
[Termination "sirmale49 ha vinto per tempo"]

1. e4 {[%clk 0:11:56.7]} 1... d5 {[%clk 0:11:58.1]} 2. exd5 {[%clk 0:11:56.7]}
2... Qxd5 {[%clk 0:11:58.9]} 3. Nc3 {[%clk 0:11:57.3]} 3... Qd6 {[%clk
0:12:00.7]} 4. d4 {[%clk 0:11:57.5]} 4... c6 {[%clk 0:12:02.7]} 5. Nf3 {[%clk
0:11:56.6]} 5... Bg4 {[%clk 0:12:03.6]} 6. Be2 {[%clk 0:11:53.5]} 6... Nf6
{[%clk 0:12:04.2]} 7. Be3 {[%clk 0:11:53.4]} 7... e6 {[%clk 0:12:05]} 8. O-O
{[%clk 0:11:49.1]} 8... Nbd7 {[%clk 0:12:03.5]} 9. Re1 {[%clk 0:11:36.1]} 9...
Be7 {[%clk 0:12:02.9]} 10. h3 {[%clk 0:11:27.4]} 10... Bf5 {[%clk 0:11:52.8]}
11. g4 {[%clk 0:11:13.8]} 11... Bg6 {[%clk 0:11:45.5]} 12. Nh4 {[%clk 0:11:13]}
12... Nd5 {[%clk 0:11:25.8]} 13. Nxd5 {[%clk 0:10:58.8]} 13... cxd5 {[%clk
0:11:23.5]} 14. Bd3 {[%clk 0:10:42.9]} 14... Bxh4 {[%clk 0:11:16.2]} 15. Bxg6
{[%clk 0:10:31.7]} 15... hxg6 {[%clk 0:11:13.2]} 16. Kg2 {[%clk 0:10:30.2]}
16... Bf6 {[%clk 0:10:44.7]} 17. f4 {[%clk 0:10:25.1]} 17... Kf8 {[%clk
0:10:32.3]} 18. Rh1 {[%clk 0:10:09.8]} 18... Nb6 {[%clk 0:10:22.1]} 19. b3
{[%clk 0:10:07.6]} 19... Rc8 {[%clk 0:09:47.4]} 20. Qe2 {[%clk 0:09:51]} 20...
a5 {[%clk 0:09:36.2]} 21. Rac1 {[%clk 0:09:47.4]} 21... a4 {[%clk 0:09:28.4]}
22. Qf2 {[%clk 0:09:04.5]} 22... axb3 {[%clk 0:09:21.5]} 23. axb3 {[%clk
0:09:00.3]} 23... Bh4 {[%clk 0:08:42.3]} 24. Qe2 {[%clk 0:08:53.7]} 24... f5
{[%clk 0:08:27.9]} 25. g5 {[%clk 0:08:51.5]} 25... Kf7 {[%clk 0:07:42.6]} 26.
Rhd1 {[%clk 0:08:17.5]} 26... Rc7 {[%clk 0:07:22]} 27. Qd3 {[%clk 0:07:32.5]}
27... Rhc8 {[%clk 0:07:12.9]} 28. c3 {[%clk 0:07:16.6]} 28... Ke7 {[%clk
0:06:15.3]} 29. Rd2 {[%clk 0:07:13.2]} 29... Rc6 {[%clk 0:05:48.8]} 30. Rdc2
{[%clk 0:07:09.6]} 30... Nd7 {[%clk 0:05:25.3]} 31. c4 {[%clk 0:07:05.9]} 31...
dxc4 {[%clk 0:05:22.2]} 32. bxc4 {[%clk 0:07:04.9]} 32... e5 {[%clk 0:05:07.2]}
33. Kf1 {[%clk 0:06:45.5]} 33... Bg3 {[%clk 0:04:50.6]} 34. Kg2 {[%clk
0:06:43.5]} 34... Bxf4 {[%clk 0:04:50.4]} 35. Bxf4 {[%clk 0:06:39.2]} 35... exf4
{[%clk 0:04:51]} 36. Re2+ {[%clk 0:06:36.2]} 36... Kf8 {[%clk 0:04:29.2]} 37. d5
{[%clk 0:06:26.2]} 37... Nc5 {[%clk 0:04:08.1]} 38. Qd4 {[%clk 0:06:13]} 38...
Ne4 {[%clk 0:04:00.5]} 39. Qd3 {[%clk 0:05:05.2]} 39... Rc5 {[%clk 0:03:42.3]}
40. Rb2 {[%clk 0:04:38.4]} 40... Nxg5 {[%clk 0:03:35.8]} 41. Rxb7 {[%clk
0:04:32.2]} 41... f3+ {[%clk 0:03:32.2]} 42. Kh1 {[%clk 0:04:23.7]} 42... Qg3
{[%clk 0:03:22]} 43. Qf1 {[%clk 0:04:13.1]} 43... Nxh3 {[%clk 0:03:06.9]} 44.
Rc3 {[%clk 0:03:37.6]} 44... Nf4 {[%clk 0:02:57.7]} 45. Rxf3 {[%clk 0:03:32.6]}
45... Qh4+ {[%clk 0:02:57.3]} 46. Kg1 {[%clk 0:03:22.4]} 46... Rxc4 {[%clk
0:02:51.1]} 47. Rb1 {[%clk 0:02:57.6]} 47... Qg4+ {[%clk 0:02:40.2]} 48. Kh1
{[%clk 0:02:45.9]} 48... Rd4 {[%clk 0:01:48.6]} 49. d6 {[%clk 0:02:16.5]} 49...
Rd8 {[%clk 0:01:45.3]} 50. Qf2 {[%clk 0:01:51]} 50... R8xd6 {[%clk 0:01:25.7]}
51. Rb8+ {[%clk 0:01:39.5]} 51... Kf7 {[%clk 0:01:11.1]} 52. Qa2+ {[%clk
0:01:31.5]} 52... Kf6 {[%clk 0:01:03.7]} 53. Rf8+ {[%clk 0:01:25.7]} 53... Kg5
{[%clk 0:01:02.6]} 54. Qg2 {[%clk 0:00:46.2]} 54... Rd1+ {[%clk 0:01:01]} 55.
Rf1 {[%clk 0:00:42.8]} 55... Rxf1+ {[%clk 0:01:00.8]} 56. Qxf1 {[%clk
0:00:42.5]} 56... Qh4+ {[%clk 0:01:01.1]} 57. Kg1 {[%clk 0:00:33]} 57... Nh3+
{[%clk 0:01:02.4]} 58. Kh1 {[%clk 0:00:20.3]} 58... Qe4+ {[%clk 0:00:57.8]} 59.
Kh2 {[%clk 0:00:19.2]} 59... Qe3 {[%clk 0:00:07.4]} 60. Qxh3 {[%clk 0:00:11.7]}
60... Qxh3+ {[%clk 0:00:08.9]} 61. Kxh3 {[%clk 0:00:10.9]} 61... Rd3+ {[%clk
0:00:10.6]} 62. Kg2 {[%clk 0:00:10.3]} 62... f4 {[%clk 0:00:12.4]} 63. Ra8
{[%clk 0:00:06.9]} 63... Kg4 {[%clk 0:00:13.6]} 64. Ra4 {[%clk 0:00:04.2]} 64...
Kg5 {[%clk 0:00:13.3]} 65. Kf2 {[%clk 0:00:03.4]} 65... Rd5 {[%clk 0:00:14.2]}
0-1

[Event "Sabato rapido!"]
[Site "Chess.com"]
[Date "2020.05.16"]
[Round "5"]
[White "sirmale49"]
[Black "pedrak"]
[Result "0-1"]
[WhiteElo "1438"]
[BlackElo "1673"]
[TimeControl "720+3"]
[EndTime "7:56:10 PDT"]
[Termination "pedrak ha vinto per abbandono"]

1. b3 {[%clk 0:11:51.8]} 1... d5 {[%clk 0:11:59.3]} 2. Bb2 {[%clk 0:11:47]} 2...
Bf5 {[%clk 0:11:59.8]} 3. Nf3 {[%clk 0:11:46.3]} 3... c6 {[%clk 0:11:48.2]} 4.
e3 {[%clk 0:11:48.3]} 4... e6 {[%clk 0:11:48.9]} 5. c4 {[%clk 0:11:49.6]} 5...
Nf6 {[%clk 0:11:49.1]} 6. Nd4 {[%clk 0:11:46.4]} 6... Bg6 {[%clk 0:11:50]} 7.
Nc3 {[%clk 0:11:37.7]} 7... Be7 {[%clk 0:11:50.9]} 8. Nf3 {[%clk 0:11:36.6]}
8... Nbd7 {[%clk 0:11:51.5]} 9. Be2 {[%clk 0:11:27.5]} 9... O-O {[%clk
0:11:52.5]} 10. O-O {[%clk 0:11:24]} 10... Re8 {[%clk 0:11:39.1]} 11. d4 {[%clk
0:11:24.5]} 11... Ne4 {[%clk 0:11:35.3]} 12. Nxe4 {[%clk 0:11:22]} 12... Bxe4
{[%clk 0:11:31.4]} 13. Ne5 {[%clk 0:11:23.4]} 13... f6 {[%clk 0:11:30.6]} 14.
Nxd7 {[%clk 0:11:07.5]} 14... Qxd7 {[%clk 0:11:31.6]} 15. f3 {[%clk 0:11:09.6]}
15... Bg6 {[%clk 0:11:31.8]} 16. c5 {[%clk 0:11:04.9]} 16... e5 {[%clk
0:11:27.2]} 17. dxe5 {[%clk 0:11:03.9]} 17... fxe5 {[%clk 0:11:28.6]} 18. Bxe5
{[%clk 0:10:56.4]} 18... Bxc5 {[%clk 0:11:29.8]} 19. Bd4 {[%clk 0:10:47.6]}
19... Qe7 {[%clk 0:11:01.5]} 20. Kf2 {[%clk 0:10:13]} 20... Bxd4 {[%clk
0:10:56.2]} 21. exd4 {[%clk 0:10:10.1]} 21... Qe3+ {[%clk 0:10:38.1]} 22. Ke1
{[%clk 0:10:08.2]} 22... Bd3 {[%clk 0:10:07.6]} 23. Rf2 {[%clk 0:09:56.2]} 23...
Qxd4 {[%clk 0:09:33.7]} 24. Kf1 {[%clk 0:09:44.9]} 24... Bxe2+ {[%clk
0:09:33.2]} 25. Rxe2 {[%clk 0:09:44.6]} 25... Rxe2 {[%clk 0:09:32.4]} 26. Qxe2
{[%clk 0:09:23.6]} 26... Qxa1+ {[%clk 0:09:28.7]} 27. Kf2 {[%clk 0:09:21.7]} 0-1

[Event "Sabato rapido!"]
[Site "Chess.com"]
[Date "2020.05.16"]
[Round "5"]
[White "crippo"]
[Black "SanSecondoPR"]
[Result "1-0"]
[WhiteElo "1519"]
[BlackElo "1271"]
[TimeControl "720+3"]
[EndTime "8:05:39 PDT"]
[Termination "crippo ha vinto per abbandono"]

1. e4 {[%clk 0:12:02.9]} 1... e5 {[%clk 0:12:00.5]} 2. Nf3 {[%clk 0:12:04.2]}
2... Nc6 {[%clk 0:12:00.3]} 3. Bc4 {[%clk 0:12:02.2]} 3... Nf6 {[%clk
0:12:00.1]} 4. d3 {[%clk 0:12:04.2]} 4... Be7 {[%clk 0:11:59.3]} 5. Nc3 {[%clk
0:12:06]} 5... O-O {[%clk 0:11:58.6]} 6. Be3 {[%clk 0:12:08.4]} 6... h6 {[%clk
0:11:59.2]} 7. Qd2 {[%clk 0:12:11.3]} 7... d6 {[%clk 0:11:53.1]} 8. O-O-O {[%clk
0:12:14.2]} 8... Bg4 {[%clk 0:11:17.8]} 9. h3 {[%clk 0:12:15.3]} 9... Be6 {[%clk
0:11:14.3]} 10. g4 {[%clk 0:12:16]} 10... Bxc4 {[%clk 0:11:10.9]} 11. dxc4
{[%clk 0:12:17.8]} 11... Qe8 {[%clk 0:11:05.2]} 12. g5 {[%clk 0:12:19]} 12...
Nd7 {[%clk 0:10:58.4]} 13. gxh6 {[%clk 0:12:20.1]} 13... g6 {[%clk 0:10:57.5]}
14. h4 {[%clk 0:12:18.3]} 14... Nf6 {[%clk 0:10:44.5]} 15. h5 {[%clk 0:12:19]}
15... Nxh5 {[%clk 0:10:42.4]} 16. Rxh5 {[%clk 0:12:20]} 16... gxh5 {[%clk
0:10:41.5]} 17. Rg1+ {[%clk 0:12:19.5]} 17... Kh7 {[%clk 0:10:39.4]} 18. Rg7+
{[%clk 0:12:19.4]} 18... Kh8 {[%clk 0:10:35.7]} 19. Bg5 {[%clk 0:12:21]} 19...
f6 {[%clk 0:10:26.7]} 20. Bh4 {[%clk 0:12:16.6]} 20... Rf7 {[%clk 0:10:09.4]}
21. Nd5 {[%clk 0:12:14.2]} 21... Rxg7 {[%clk 0:10:04]} 22. hxg7+ {[%clk
0:12:16.1]} 22... Kxg7 {[%clk 0:10:01.1]} 23. Qe1 {[%clk 0:11:13]} 23... Qg6
{[%clk 0:09:55.2]} 24. Nxc7 {[%clk 0:11:08.2]} 24... Re8 {[%clk 0:09:15.4]} 25.
Bg3 {[%clk 0:11:03]} 25... Bd8 {[%clk 0:09:04]} 26. Nh4 {[%clk 0:11:02.4]} 26...
Qg5+ {[%clk 0:08:50.9]} 27. f4 {[%clk 0:11:02.2]} 27... exf4 {[%clk 0:08:45.9]}
28. Nxe8+ {[%clk 0:11:02.6]} 28... Kh8 {[%clk 0:08:28.1]} 29. Bf2 {[%clk
0:10:54.7]} 29... Ne5 {[%clk 0:07:52.2]} 30. Nxd6 {[%clk 0:10:52.7]} 30... Be7
{[%clk 0:07:06.5]} 31. Ndf5 {[%clk 0:10:48.8]} 31... Bf8 {[%clk 0:06:32.5]} 32.
c5 {[%clk 0:10:18.2]} 32... Kh7 {[%clk 0:06:16.9]} 33. Kb1 {[%clk 0:10:11.7]}
33... Ng4 {[%clk 0:05:48.6]} 34. Bd4 {[%clk 0:09:47.7]} 34... Ne3 {[%clk
0:05:37.4]} 35. Bxe3 {[%clk 0:09:45.4]} 35... fxe3 {[%clk 0:05:37]} 36. Qxe3
{[%clk 0:09:39.8]} 36... Qg4 {[%clk 0:05:25.8]} 37. b4 {[%clk 0:09:28.3]} 37...
Qd1+ {[%clk 0:05:21.1]} 38. Kb2 {[%clk 0:09:25.1]} 38... a5 {[%clk 0:05:01.5]}
39. a3 {[%clk 0:09:25.5]} 39... axb4 {[%clk 0:04:58.9]} 40. axb4 {[%clk
0:09:27.2]} 40... b6 {[%clk 0:04:36.3]} 41. Qb3 {[%clk 0:09:14.9]} 41... Qd7
{[%clk 0:03:55]} 42. c6 {[%clk 0:09:07.5]} 42... Qc7 {[%clk 0:03:47.5]} 43. b5
{[%clk 0:09:05.9]} 43... Qe5+ {[%clk 0:03:36.5]} 44. Ka2 {[%clk 0:09:06.8]}
44... Qc7 {[%clk 0:03:21]} 45. Qe6 {[%clk 0:08:53.5]} 45... Qa7+ {[%clk
0:03:11.8]} 46. Kb1 {[%clk 0:08:50.2]} 46... Bg7 {[%clk 0:02:45.7]} 47. Qd7
{[%clk 0:08:46.5]} 1-0